bitfinex-derivatives/quotes_BNBF0:USTF0_20251010
["timestamp","ask_amount","ask_price","bid_price","bid_amount"]
[1760117477246,1.1755452,1231.9,1228.4,0.51920074]
[1760117477447,1.1755452,1231.8,1228.5,0.51920074]
[1760117477650,1.1755452,1231.9,1228.6,0.51920074]
[1760117477853,1.1755452,1231.9,1228.7,0.51920074]
[1760117478054,1.1755452,1231.9,1228.8,0.51920074]
[1760117478251,1.1755452,1231.9,1228.3,0.6060903]
[1760117478451,1.1755452,1231.9,1228.4,0.51987077]
[1760117478654,1.1755452,1231.9,1228.5,0.51987077]
[1760117478856,1.1755452,1231.9,1228.6,0.51987077]
[1760117479052,1.1755452,1231.8,1228.7,0.51987077]
[1760117479251,1.1755452,1231.8,1228.8,0.51987077]
[1760117479455,1.1755452,1231.8,1228.2,0.6060903]
[1760117479652,1.1755452,1231.8,1228.3,0.52023716]
[1760117479857,1.1755452,1231.8,1228.4,0.52023716]
[1760117480051,1.1755452,1231.8,1228.5,0.52023716]
[1760117480355,1.1755452,1231.7,1228.6,0.52023716]
[1760117480553,1.1755452,1231.5,1228.7,0.52023716]
[1760117480756,1.1755452,1231.6,1228.8,0.52023716]
[1760117480956,1.1755452,1231.6,1228.3,0.6060903]
[1760117481155,1.1755452,1231.6,1228.4,0.5206268]
[1760117481354,1.1755452,1231.6,1228.5,0.5206268]
[1760117481553,1.1755452,1231.6,1228.6,0.5206268]
[1760117481755,1.1755452,1231.6,1228.7,0.5206268]
[1760117481951,1.1755452,1231.6,1228.8,0.5206268]
[1760117482157,1.1755452,1231.5,1228.9,0.52151847]
[1760117482352,1.1755452,1231.5,1228.4,0.6060903]
[1760117482554,1.1755452,1231.5,1228.5,0.52157609]
[1760117482754,1.1755452,1231.5,1228.6,0.52157609]
[1760117482954,1.1755452,1231.5,1228.7,0.52157609]
[1760117483157,1.1755452,1231.5,1228.8,0.52157609]
[1760117483353,1.1755452,1231.4,1228.9,0.52157609]
[1760117483560,1.1755452,1231.4,1228.4,0.6060903]
[1760117483760,1.1755452,1231.4,1228.5,0.52213155]
[1760117484056,1.1755452,1231.5,1228.6,0.52213155]
[1760117484261,1.1755452,1231.4,1228.7,0.52213155]
[1760117484455,1.1755452,1231.3,1228.1,0.6060903]
[1760117484655,1.1755452,1231.3,1228.2,0.52280389]
[1760117484859,1.1755452,1231.3,1228.3,0.52280389]
[1760117485055,1.1755452,1231.3,1228.4,0.52280389]
[1760117485355,1.1755452,1231.4,1228.5,0.52280389]
[1760117485556,1.1755452,1231.4,1228.6,0.52280389]
[1760117485759,1.1755452,1231.4,1228.7,0.52280389]
[1760117485958,1.1755452,1231.4,1228.8,0.52280389]
[1760117486159,1.1755452,1231.1,1228.9,0.52210251]
[1760117486462,1.1755452,1231.0,1229.0,0.52210251]
[1760117486762,1.1755452,1231.0,1229.1,0.52210251]
[1760117486960,1.1755452,1231.1,1229.2,0.52210251]
[1760117487159,1.1755452,1230.8,1229.3,0.52210251]
[1760117487361,1.1755452,1230.9,1228.9,0.6060903]
[1760117487559,1.1755452,1231.3,1229.0,0.52394842]
[1760117487761,1.1755452,1231.3,1229.1,0.52394842]
[1760117487960,1.1755452,1231.3,1229.2,0.52394842]
[1760117488161,1.1755452,1231.4,1229.3,0.52394842]
[1760117488364,1.1755452,1231.4,1229.4,0.52394842]
[1760117488561,1.1755452,1231.4,1228.8,0.6060903]
[1760117488766,1.1755452,1231.4,1228.9,0.52368925]
[1760117488963,1.1755452,1231.7,1229.0,0.52368925]
[1760117489166,1.1755452,1231.7,1229.1,0.52368925]
[1760117489367,1.1755452,1231.8,1229.2,0.52368925]
[1760117489567,1.1755452,1231.8,1229.3,0.52368925]
[1760117489766,1.1755452,1231.8,1229.4,0.52368925]
[1760117489964,1.1755452,1231.8,1229.5,0.52368925]
[1760117490165,1.1755452,1231.7,1228.7,0.6060903]
[1760117490365,1.1755452,1231.8,1228.8,0.52348461]
[1760117490667,1.1755452,1231.8,1228.9,0.52348461]
[1760117490966,1.1755452,1231.1,1229.0,0.52348461]
[1760117491268,1.1755452,1231.1,1229.1,0.52348461]
[1760117491468,1.1755452,1231.1,1229.2,0.52348461]
[1760117491668,1.1755452,1231.0,1228.7,0.6060903]
[1760117491869,1.1755452,1231.0,1228.8,0.52329626]
[1760117492069,1.1755452,1231.0,1228.9,0.52329626]
[1760117492269,1.1755452,1231.1,1229.0,0.52329626]
[1760117492469,1.1755452,1231.1,1229.1,0.52329626]
[1760117492765,1.1755452,1231.1,1228.6,0.6060903]
[1760117492964,1.1755452,1231.1,1228.7,0.52324542]
[1760117493164,1.1755452,1231.0,1228.8,0.52324542]
[1760117493368,1.1755452,1231.1,1228.9,0.52324542]
[1760117493565,1.1755452,1231.1,1229.0,0.52324542]
[1760117493769,1.1755452,1231.0,1229.1,0.52324542]
[1760117493972,1.1755452,1230.9,1228.8,0.6060903]
[1760117494169,1.1755452,1231.0,1228.9,1.1292723]
[1760117494372,1.1755452,1231.1,1229.0,1.1292723]
[1760117494569,1.1755452,1231.1,1229.1,0.523182]
[1760117494873,1.1755452,1231.2,1229.2,0.523182]
[1760117495070,1.1755452,1231.2,1229.3,0.523182]
[1760117495273,1.1755452,1231.2,1229.4,0.523182]
[1760117495570,1.1755452,1231.3,1229.5,0.523182]
[1760117495773,1.1755452,1231.6,1229.6,0.52280093]
[1760117495970,1.1755452,1231.6,1229.1,0.6060903]
[1760117496175,1.1755452,1231.6,1229.2,0.52279792]
[1760117496375,1.1755452,1231.7,1229.3,0.52279792]
[1760117496576,1.1755452,1231.7,1229.4,0.52279792]
[1760117496875,1.1755452,1231.7,1229.5,0.52279792]
[1760117497074,1.1755452,1231.8,1228.9,0.6060903]
[1760117497275,1.1755452,1231.7,1229.0,0.52258741]
[1760117497473,1.1755452,1231.7,1229.1,0.52258741]
[1760117497676,1.1755452,1231.6,1229.2,0.52258741]
[1760117497877,1.1755452,1231.6,1229.3,0.52258741]
[1760117498074,1.1755452,1231.6,1229.4,0.52258741]
[1760117498275,1.1755452,1231.6,1228.9,0.6060903]
[1760117498575,1.1755452,1231.7,1229.0,0.52236055]
[1760117498774,1.1755452,1231.7,1229.1,0.52236055]
[1760117498979,1.1755452,1231.7,1229.2,0.52236055]
[1760117499179,1.1755452,1231.7,1229.3,0.52236055]
[1760117499480,1.1755452,1231.7,1229.4,0.52236055]
[1760117499774,1.1755452,1231.7,1229.5,0.52236055]
[1760117499979,1.1755452,1231.7,1229.0,0.6060903]
[1760117500179,1.1755452,1231.7,1229.1,0.52213134]
[1760117500376,1.1755452,1231.7,1229.2,0.52213134]
[1760117500581,1.1755452,1231.7,1229.3,0.52213134]
[1760117500777,1.1755452,1231.7,1229.4,0.52213134]
[1760117501077,1.1755452,1231.7,1229.5,0.52213134]
[1760117501275,1.1755452,1231.8,1229.0,0.6060903]
[1760117501480,1.1755452,1231.8,1229.1,0.5218123]
[1760117501679,1.1755452,1231.7,1229.2,0.5218123]
[1760117501880,1.1755452,1231.7,1229.1,0.6060903]
[1760117501881,1.1755452,1231.7,1229.3,0.5218123]
[1760117502177,1.1755452,1231.7,1229.1,0.6060903]
[1760117502178,1.1755452,1231.7,1229.4,0.5218123]
[1760117502376,1.1755452,1231.7,1229.5,0.5218123]
[1760117502578,1.1755452,1231.7,1229.1,0.6060903]
[1760117502882,1.1755452,1231.7,1229.2,0.52166328]
[1760117503080,1.1755452,1231.7,1229.3,0.52166328]
[1760117503383,1.1755452,1231.8,1229.4,0.52166328]
[1760117503580,1.1755452,1231.8,1229.5,0.52166328]
[1760117503879,1.1755452,1231.8,1229.0,0.6060903]
[1760117504083,1.1755452,1231.9,1229.1,1.12761334]
[1760117504378,1.1755452,1231.9,1229.2,0.52152304]
[1760117504578,1.1755452,1231.9,1229.3,0.52152304]
[1760117504780,1.1755452,1231.9,1229.4,0.52152304]
[1760117504981,0.14131779,1232.9,1229.5,0.52152304]
[1760117504982,1.1755452,1232.0,1229.5,0.52152304]
[1760117505184,1.1755452,1232.0,1229.6,0.52152304]
[1760117505483,1.1755452,1231.9,1229.1,0.6060903]
[1760117505779,1.1755452,1231.9,1229.2,0.52127326]
[1760117505978,1.1755452,1231.9,1229.3,0.52127326]
[1760117506178,1.1755452,1231.9,1229.4,0.52127326]
[1760117506380,1.1755452,1232.1,1229.5,0.52127326]
[1760117506684,1.1755452,1232.1,1229.6,0.52127326]
[1760117506882,1.1755452,1232.1,1229.1,0.6060903]
[1760117507085,1.1755452,1232.1,1229.2,0.52116231]
[1760117507384,1.1755452,1232.1,1229.3,0.52116231]
[1760117507584,1.1755452,1232.1,1229.4,0.52116231]
[1760117507780,1.1755452,1232.1,1229.5,0.52116231]
[1760117507984,1.1755452,1232.1,1229.6,0.52116231]
[1760117508181,1.1755452,1232.1,1229.0,0.6060903]
[1760117508385,1.1755452,1232.1,1229.1,0.52102421]
[1760117508682,1.1755452,1232.1,1229.2,0.52102421]
[1760117508881,1.1755452,1232.1,1229.3,0.52102421]
[1760117509085,1.1755452,1232.0,1229.4,0.52102421]
[1760117509289,1.1755452,1231.8,1228.9,0.6060903]
[1760117509485,1.1755452,1231.8,1229.0,0.52108395]
[1760117509785,1.1755452,1231.8,1229.1,0.52108395]
[1760117509982,1.1755452,1231.8,1229.2,0.52108395]
[1760117510283,1.1755452,1231.8,1229.3,0.52108395]
[1760117510585,1.1755452,1231.8,1229.4,0.52108395]
[1760117510784,1.1755452,1231.7,1228.8,0.6060903]
[1760117510986,1.1755452,1231.7,1228.9,0.52114205]
[1760117511186,1.1755452,1231.7,1229.0,0.52114205]
[1760117511386,1.1755452,1231.7,1229.1,0.52114205]
[1760117511586,1.1755452,1231.7,1229.2,0.52114205]
[1760117511788,1.1755452,1231.7,1229.3,0.52114205]
[1760117511986,1.1755452,1231.7,1228.8,0.6060903]
[1760117512288,1.1755452,1231.6,1228.9,0.52118569]
[1760117512489,1.1755452,1231.6,1229.0,0.52118569]
[1760117512691,1.1755452,1231.6,1229.1,0.52118569]
[1760117512989,1.1755452,1231.7,1229.2,0.52118569]
[1760117513288,1.1755452,1231.7,1228.7,0.6060903]
[1760117513289,1.1755452,1231.7,1229.3,0.52118569]
[1760117513589,1.1755452,1231.7,1228.7,0.6060903]
[1760117513786,1.1755452,1231.7,1228.8,0.52133014]
[1760117514085,0.14131779,1232.9,1228.7,0.6060903]
[1760117514086,1.1755452,1231.9,1228.9,0.52133014]
[1760117514285,1.1755452,1231.7,1229.0,0.52133014]
[1760117514486,1.1755452,1231.7,1229.1,0.52133014]
[1760117514685,1.1755452,1231.7,1229.2,0.52147949]
[1760117514889,1.1755452,1231.8,1228.5,0.6060903]
[1760117515089,1.1755452,1231.8,1228.6,0.52147621]
[1760117515290,1.1755452,1231.7,1228.7,0.52147621]
[1760117515586,1.1755452,1231.6,1228.8,0.52147621]
[1760117515789,1.1755452,1231.6,1228.9,0.52147621]
[1760117515989,1.1755452,1231.6,1229.0,0.52147621]
[1760117516190,1.1755452,1231.6,1229.1,0.52147621]
[1760117516391,0.14131779,1232.9,1228.6,0.6060903]
[1760117516392,1.1755452,1231.4,1228.6,0.6060903]
[1760117516693,1.1755452,1231.4,1228.7,0.52170152]
[1760117516891,1.1755452,1231.4,1228.8,0.52170152]
[1760117517092,1.1755452,1231.4,1228.9,0.52170152]
[1760117517392,1.1755452,1231.4,1229.0,0.52170152]
[1760117517589,1.1755452,1231.4,1229.1,0.52170152]
[1760117517793,1.1755452,1231.4,1228.6,0.6060903]
[1760117518093,1.1755452,1231.4,1228.7,0.52180084]
[1760117518293,1.1755452,1231.4,1228.8,0.52180084]
[1760117518490,1.1755452,1231.3,1228.9,0.52180084]
[1760117518690,1.1755452,1231.3,1229.0,0.52180084]
[1760117518893,1.1755452,1231.3,1229.1,0.52180084]
[1760117519089,1.1755452,1231.1,1228.7,0.6060903]
[1760117519293,1.1755452,1231.1,1228.8,0.5219888]
[1760117519493,1.1755452,1231.1,1228.9,0.5219888]
[1760117519690,1.1755452,1231.1,1229.0,0.5219888]
[1760117519988,1.1755452,1231.1,1229.1,0.5219888]
[1760117520293,1.1755452,1231.2,1228.7,0.6060903]
[1760117520492,1.1755452,1231.2,1228.8,0.52204624]
[1760117520690,1.1755452,1231.2,1228.4,0.80249048]
[1760117520691,1.1755452,1231.2,1228.9,0.52204624]
[1760117520989,1.1755452,1231.2,1229.0,0.52204624]
[1760117521193,1.1755452,1231.2,1228.5,0.6060903]
[1760117521389,1.1755452,1231.2,1228.6,0.52207901]
[1760117521589,1.1755452,1231.2,1228.7,0.52207901]
[1760117521793,1.1755452,1231.2,1228.8,0.52207901]
[1760117521990,1.1755452,1231.2,1228.9,0.52207901]
[1760117522190,1.1755452,1231.2,1229.0,0.52207901]
[1760117522394,1.1755452,1231.1,1228.5,0.6060903]
[1760117522689,1.1755452,1231.1,1228.6,0.52230567]
[1760117522990,1.1755452,1231.1,1228.7,0.52230567]
[1760117523194,1.1755452,1231.1,1228.8,0.52230567]
[1760117523393,1.1755452,1231.1,1228.9,0.52230567]
[1760117523694,1.1755452,1231.1,1229.0,0.52230567]
[1760117523895,1.1755452,1231.1,1228.5,0.6060903]
[1760117524091,1.1755452,1231.1,1228.6,0.52242229]
[1760117524293,1.1755452,1231.1,1228.7,0.52242229]
[1760117524492,1.1755452,1231.1,1228.8,0.52242229]
[1760117524692,1.1755452,1231.1,1228.9,0.52242229]
[1760117524896,1.1755452,1231.1,1229.0,0.52242229]
[1760117525096,1.1755452,1231.1,1228.5,0.6060903]
[1760117525294,1.1755452,1231.1,1228.6,0.52254702]
[1760117525494,1.1755452,1231.1,1228.7,0.52254702]
[1760117525700,1.1755452,1231.1,1228.8,0.52254702]
[1760117525901,1.1755452,1231.1,1228.9,0.52254702]
[1760117526197,1.1755452,1231.1,1229.0,0.52254702]
[1760117526401,1.1755452,1231.1,1228.5,0.6060903]
[1760117526602,1.1755452,1230.9,1228.6,1.12884715]
[1760117526801,1.1755452,1231.1,1228.7,0.52275685]
[1760117527099,1.1755452,1231.1,1228.8,0.52275685]
[1760117527298,1.1755452,1231.1,1228.9,0.52275685]
[1760117527502,1.1755452,1231.1,1229.0,0.52275685]
[1760117527702,1.1755452,1231.0,1228.4,0.6060903]
[1760117527900,1.1755452,1231.0,1228.5,0.5229052]
[1760117528102,1.1755452,1231.0,1228.6,0.5229052]
[1760117528301,1.1755452,1230.8,1228.7,0.5229052]
[1760117528502,1.1755452,1230.5,1228.3,0.6060903]
[1760117528700,1.1755452,1230.5,1228.4,0.52308266]
[1760117528900,1.1755452,1230.5,1228.5,0.52308266]
[1760117529100,1.1755452,1230.5,1228.6,0.52308266]
[1760117529404,1.1755452,1230.5,1228.7,0.52308266]
[1760117529606,1.1755452,1230.5,1228.3,0.6060903]
[1760117529803,1.1755452,1230.7,1228.4,0.52313387]
[1760117530103,1.1755452,1230.7,1228.5,0.52313387]
[1760117530306,1.1755452,1230.7,1228.6,0.52313387]
[1760117530503,1.1755452,1230.7,1228.7,0.52313387]
[1760117530703,1.1755452,1230.7,1228.3,0.6060903]
[1760117530904,1.1755452,1230.9,1228.4,0.52318939]
[1760117531103,1.1755452,1230.9,1228.5,0.52318939]
[1760117531304,1.1755452,1230.8,1228.6,0.52318939]
[1760117531508,1.1755452,1230.8,1228.7,0.52318939]
[1760117531707,1.1755452,1230.8,1228.1,0.6060903]
[1760117531908,1.1755452,1230.8,1228.2,0.52322352]
[1760117532207,0.14131779,1232.9,1228.3,0.52322352]
[1760117532208,1.1755452,1230.9,1228.3,0.52322352]
[1760117532410,1.1755452,1230.9,1228.4,0.52322352]
[1760117532608,1.1755452,1230.9,1228.5,0.52322352]
[1760117532812,1.1755452,1230.9,1228.6,0.52322352]
[1760117533116,1.1755452,1230.9,1228.7,0.52322352]
[1760117533314,1.1755452,1230.9,1228.1,0.6060903]
[1760117533518,1.1755452,1230.9,1228.2,0.52318709]
[1760117533813,1.1755452,1230.9,1228.3,0.52318709]
[1760117534019,1.1755452,1230.9,1228.4,0.52318709]
[1760117534217,1.1755452,1230.7,1228.5,0.52318709]
[1760117534518,1.1755452,1230.7,1228.0,0.6060903]
[1760117534716,1.1755452,1230.7,1228.1,0.52312075]
[1760117535013,1.1755452,1230.7,1228.2,0.52312075]
[1760117535216,1.1755452,1230.7,1228.3,0.52312075]
[1760117535416,1.1755452,1230.7,1228.4,0.52312075]
[1760117535613,1.1755452,1230.7,1228.0,0.6060903]
[1760117535614,1.1755452,1230.7,1228.5,0.52312075]
[1760117535817,1.1755452,1230.7,1227.9,0.6060903]
[1760117536018,1.1755452,1230.7,1228.0,0.52307125]
[1760117536217,1.1755452,1230.4,1228.1,0.52307125]
[1760117536413,1.1755452,1230.4,1228.2,0.52307125]
[1760117536615,1.1755452,1230.3,1228.3,0.52307125]
[1760117536815,1.1755452,1230.3,1227.9,0.6060903]
[1760117537018,1.1755452,1230.3,1228.0,0.52302812]
[1760117537219,1.1755452,1230.3,1228.1,0.52302812]
[1760117537517,1.1755452,1230.3,1228.2,0.52302812]
[1760117537717,1.1755452,1230.3,1228.3,0.52302812]
[1760117538019,1.1755452,1230.4,1228.4,0.52289486]
[1760117538215,1.1755452,1230.7,1227.8,0.6060903]
[1760117538415,1.1755452,1230.7,1227.2,1.2037357]
[1760117538416,1.1755452,1231.1,1227.9,0.52276642]
[1760117538619,2.7429388,1232.6,1227.0,0.14143151]
[1760117538620,1.1755452,1231.4,1228.0,0.52276642]
[1760117538914,2.7429388,1232.6,1228.1,0.52276642]
[1760117538915,1.1755452,1231.2,1228.1,0.52276642]
[1760117539114,1.1755452,1231.3,1228.2,0.52276642]
[1760117539421,1.1755452,1230.3,1227.6,0.6060903]
[1760117539618,1.1755452,1230.3,1227.7,0.52262069]
[1760117539819,1.1755452,1230.1,1227.8,0.52262069]
[1760117540119,1.1755452,1230.0,1227.9,0.52262069]
[1760117540420,1.1755452,1230.1,1228.0,0.52262069]
[1760117540621,1.1755452,1230.1,1227.6,0.6060903]
[1760117540917,1.1755452,1230.1,1227.7,0.52237121]
[1760117541115,1.1755452,1230.1,1227.8,0.52237121]
[1760117541320,1.1755452,1230.1,1227.9,0.52237121]
[1760117541521,1.1755452,1230.1,1228.0,0.52237121]
[1760117541722,1.959242,1231.0,1227.6,0.6060903]
[1760117541723,1.1755452,1230.2,1227.6,0.6060903]
[1760117541918,1.1755452,1230.7,1227.7,0.52212467]
[1760117542117,1.1755452,1230.9,1227.8,0.52212467]
[1760117542418,1.1755452,1230.8,1227.9,0.52212467]
[1760117542616,1.1755452,1230.8,1228.0,0.52212467]
[1760117542917,1.1755452,1230.7,1228.1,0.52212467]
[1760117543222,1.1755452,1230.7,1228.2,0.52212467]
[1760117543421,1.1755452,1230.7,1228.3,0.52212467]
[1760117543721,1.1755452,1230.8,1228.4,0.52212467]
[1760117544022,1.1755452,1231.0,1228.5,0.52181608]
[1760117544317,1.1755452,1231.2,1228.6,0.52181608]
[1760117544518,1.1755452,1231.2,1228.7,0.52181608]
[1760117544721,1.1755452,1231.2,1228.0,0.6060903]
[1760117545016,1.1755452,1231.2,1228.1,0.52177704]
[1760117545221,1.1755452,1231.2,1228.2,0.52177704]
[1760117545417,1.1755452,1231.2,1228.3,0.52177704]
[1760117545621,1.1755452,1231.2,1228.4,0.52177704]
[1760117545817,1.1755452,1231.2,1228.5,0.52177704]
[1760117546017,1.1755452,1231.2,1228.6,0.52177704]
[1760117546220,1.1755452,1231.2,1228.0,0.6060903]
[1760117546423,1.1755452,1231.2,1228.1,0.52163399]
[1760117546623,1.1755452,1231.2,1228.2,0.52163399]
[1760117546923,1.1755452,1230.5,1227.6,0.6060903]
[1760117547123,1.1755452,1230.5,1227.7,0.52177843]
[1760117547422,1.1755452,1230.5,1227.8,0.52177843]
[1760117547620,1.1755452,1230.5,1227.9,0.52177843]
[1760117547820,1.1755452,1230.5,1228.0,0.52177843]
[1760117548022,1.1755452,1230.5,1228.1,0.52177843]
[1760117548223,1.1755452,1230.6,1227.6,0.6060903]
[1760117548424,1.1755452,1230.6,1227.7,0.52139384]
[1760117548621,1.1755452,1230.5,1227.8,0.52139384]
[1760117548821,1.1755452,1230.5,1227.9,0.52139384]
[1760117549125,1.1755452,1230.5,1228.0,0.52139384]
[1760117549325,1.1755452,1230.6,1228.1,0.52139384]
[1760117549521,1.1755452,1230.6,1227.6,0.6060903]
[1760117549726,1.1755452,1230.5,1227.7,0.52128668]
[1760117549926,1.1755452,1230.4,1227.8,0.52128668]
[1760117550127,1.1755452,1230.5,1227.9,0.52128668]
[1760117550328,1.1755452,1230.5,1227.4,0.6060903]
[1760117550528,1.1755452,1230.4,1227.5,0.52108299]
[1760117550729,1.1755452,1230.0,1227.6,0.52108299]
[1760117550928,1.1755452,1230.0,1227.2,0.6060903]
[1760117551125,1.1755452,1230.0,1227.3,1.12723971]
[1760117551324,1.1755452,1230.0,1227.4,0.52114941]
[1760117551524,1.1755452,1230.1,1227.5,0.52114941]
[1760117551728,1.1755452,1230.1,1227.6,0.52114941]
[1760117551925,1.1755452,1230.1,1227.3,0.6060903]
[1760117552230,1.1755452,1230.2,1227.4,0.52080966]
[1760117552430,1.1755452,1230.2,1227.5,0.52080966]
[1760117552728,1.1755452,1230.2,1227.6,0.52080966]
[1760117552931,1.1755452,1230.2,1227.2,0.6060903]
[1760117553130,1.1755452,1230.2,1227.3,0.52050811]
[1760117553426,1.1755452,1230.4,1227.4,0.52050811]
[1760117553630,1.1755452,1230.4,1227.5,0.52050811]
[1760117553930,1.1755452,1230.4,1227.6,0.52050811]
[1760117554231,1.1755452,1230.3,1227.0,0.74752181]
[1760117554431,1.1755452,1230.3,1227.1,0.52000526]
[1760117554727,1.1755452,1230.3,1227.2,0.52000526]
[1760117555029,1.1755452,1230.3,1227.3,0.52000526]
[1760117555226,1.1755452,1230.4,1227.4,0.52000526]
[1760117555431,1.1755452,1230.3,1227.5,0.52000526]
[1760117555731,1.1755452,1230.3,1227.0,0.74752181]
[1760117556028,1.1755452,1230.3,1227.1,0.51984709]
[1760117556231,1.1755452,1230.4,1227.2,0.51984709]
[1760117556527,1.1755452,1230.4,1227.3,0.51984709]
[1760117556731,1.1755452,1230.4,1227.4,0.51984709]
[1760117557031,1.1755452,1230.4,1227.5,0.51984709]
[1760117557229,1.1755452,1230.4,1227.0,0.74752181]
[1760117557428,1.1755452,1230.5,1227.1,0.51959586]
[1760117557729,1.1755452,1230.5,1227.2,0.51959586]
[1760117557933,1.1755452,1230.6,1227.3,0.51959586]
[1760117558135,1.1755452,1230.6,1227.4,0.51959586]
[1760117558329,1.1755452,1230.6,1227.5,0.51959586]
[1760117558531,1.1755452,1230.6,1227.6,0.51959586]
[1760117558729,1.1755452,1230.6,1227.0,0.74752181]
[1760117558933,1.1755452,1230.6,1227.1,0.51948277]
[1760117559131,1.1755452,1230.7,1227.2,0.51948277]
[1760117559330,1.1755452,1230.7,1227.3,0.51948277]
[1760117559529,1.1755452,1230.6,1227.4,0.51948277]
[1760117559735,1.1755452,1230.6,1227.5,0.51948277]
[1760117559934,1.1755452,1230.5,1227.0,0.14143151]
[1760117560241,1.1755452,1230.4,1227.1,0.51950067]
[1760117560537,1.1755452,1230.3,1227.2,0.51950067]
[1760117560733,1.1755452,1230.3,1227.3,0.51950067]
[1760117560935,1.1755452,1230.3,1227.4,0.51950067]
[1760117561136,1.1755452,1230.2,1227.0,0.14143151]
[1760117561436,1.1755452,1230.2,1227.1,0.51933297]
[1760117561638,1.1755452,1230.2,1227.2,0.51933297]
[1760117561834,1.1755452,1230.2,1227.3,0.51933297]
[1760117562035,1.1755452,1230.2,1227.0,0.14143151]
[1760117562239,1.1755452,1230.2,1227.1,0.51943085]
[1760117562439,1.1755452,1230.2,1227.2,0.51943085]
[1760117562639,1.1755452,1230.2,1227.3,0.51943085]
[1760117562839,1.1755452,1230.2,1227.0,0.14143151]
[1760117563041,1.1755452,1230.2,1227.1,0.51940986]
[1760117563341,1.1755452,1230.2,1227.2,0.51940986]
[1760117563544,1.1755452,1230.2,1227.3,0.51940986]
[1760117563743,1.1755452,1230.2,1227.0,0.14143151]
[1760117563941,1.1755452,1230.2,1227.1,0.5194085]
[1760117564141,1.1755452,1230.1,1227.2,0.5194085]
[1760117564342,1.1755452,1230.1,1227.3,0.5194085]
[1760117564542,1.1755452,1230.1,1227.0,0.14143151]
[1760117564738,1.1755452,1230.1,1227.1,0.51943744]
[1760117565041,1.1755452,1230.2,1227.2,0.51943744]
[1760117565238,1.1755452,1230.2,1227.3,0.51943744]
[1760117565542,1.1755452,1230.5,1227.4,0.51943744]
[1760117565837,1.1755452,1230.5,1227.5,0.51943744]
[1760117566142,1.1755452,1230.5,1227.0,0.74752181]
[1760117566338,1.1755452,1230.5,1227.1,0.51944347]
[1760117566538,1.1755452,1230.5,1227.2,0.51944347]
[1760117566843,1.1755452,1230.5,1227.3,0.51944347]
[1760117567043,1.1755452,1230.5,1227.4,0.51944347]
[1760117567240,1.1755452,1230.3,1227.5,0.51944347]
[1760117567439,1.1755452,1230.3,1227.1,0.6060903]
[1760117567640,1.1755452,1230.3,1227.2,0.51974332]
[1760117567842,1.1755452,1230.2,1227.3,0.51974332]
[1760117568041,1.1755452,1230.2,1227.4,0.51974332]
[1760117568242,1.1755452,1230.2,1227.5,0.51974332]
[1760117568442,1.1755452,1230.1,1227.1,0.6060903]
[1760117568645,1.1755452,1230.1,1227.2,0.51992874]
[1760117568843,1.1755452,1230.1,1227.3,0.51992874]
[1760117569043,1.1755452,1230.1,1227.4,0.51992874]
[1760117569246,1.1755452,1230.1,1227.5,0.51992874]
[1760117569445,1.1755452,1230.1,1227.6,0.52005012]
[1760117569744,1.1755452,1230.2,1227.7,0.52005012]
[1760117569943,1.1755452,1230.2,1227.3,0.6060903]
[1760117570143,1.1755452,1230.2,1227.4,0.52001993]
[1760117570343,1.1755452,1230.2,1227.5,0.52001993]
[1760117570543,1.1755452,1230.2,1227.6,0.52001993]
[1760117570743,1.1755452,1230.4,1227.1,0.6060903]
[1760117571043,1.1755452,1230.4,1227.2,0.52026159]
[1760117571244,1.1755452,1230.4,1227.3,0.52026159]
[1760117571448,1.1755452,1230.4,1227.0,0.14143151]
[1760117571449,1.1755452,1230.4,1227.4,0.52026159]
[1760117571646,1.1755452,1230.4,1227.5,0.52026159]
[1760117571946,1.1755452,1230.3,1227.0,0.74752181]
[1760117572149,1.1755452,1230.3,1227.1,0.52039394]
[1760117572444,1.1755452,1230.3,1227.2,0.52039394]
[1760117572648,1.1755452,1230.3,1227.3,0.52039394]
[1760117572848,1.1755452,1230.3,1227.4,0.52039394]
[1760117573052,1.1755452,1230.3,1227.5,0.52039394]
[1760117573245,1.1755452,1230.2,1227.6,0.52039394]
[1760117573445,1.1755452,1230.2,1227.1,0.6060903]
[1760117573750,1.1755452,1230.2,1227.3,0.6060903]
[1760117574048,1.1755452,1230.2,1227.4,1.12670427]
[1760117574246,1.1755452,1230.3,1227.5,0.52061397]
[1760117574448,1.1755452,1230.3,1227.4,0.6060903]
[1760117574449,1.1755452,1230.3,1227.6,0.52061397]
[1760117574649,1.1755452,1230.3,1227.7,0.52061397]
[1760117574843,1.1755452,1230.3,1227.4,0.6060903]
[1760117574844,1.1755452,1230.3,1227.8,0.52061397]
[1760117575048,1.1755452,1230.3,1227.4,0.6060903]
[1760117575246,1.1755452,1230.3,1227.5,0.52072574]
[1760117575444,1.1755452,1230.2,1227.6,0.52072574]
[1760117575645,1.1755452,1230.2,1227.7,0.52072574]
[1760117575947,1.1755452,1230.2,1227.8,0.52072574]
[1760117576147,1.1755452,1230.2,1227.4,0.6060903]
[1760117576345,1.1755452,1230.2,1227.5,0.5207177]
[1760117576550,1.1755452,1230.2,1227.6,0.5207177]
[1760117576751,1.1755452,1230.2,1227.7,0.5207177]
[1760117577051,1.1755452,1230.2,1227.8,0.5207177]
[1760117577252,1.1755452,1230.2,1227.4,0.6060903]
[1760117577452,1.1755452,1230.2,1227.5,0.52099905]
[1760117577651,1.1755452,1230.2,1227.6,0.52099905]
[1760117577953,1.1755452,1230.2,1227.7,0.52099905]
[1760117578148,1.1755452,1230.2,1227.8,0.52099905]
[1760117578352,1.1755452,1230.1,1227.4,0.6060903]
[1760117578546,1.1755452,1230.1,1227.5,0.521184]
[1760117578848,1.1755452,1230.2,1227.6,0.521184]
[1760117579049,1.1755452,1230.1,1227.7,0.521184]
[1760117579252,1.1755452,1230.2,1227.8,0.521184]
[1760117579453,1.1755452,1230.2,1227.4,0.6060903]
[1760117579652,1.1755452,1230.2,1227.5,0.52138702]
[1760117579852,1.1755452,1230.2,1227.6,0.52138702]
[1760117580152,1.1755452,1229.8,1227.1,0.6060903]
[1760117580353,1.1755452,1229.8,1227.2,0.52146973]
[1760117580653,1.1755452,1229.8,1227.3,0.52146973]
[1760117580953,1.1755452,1229.8,1227.4,0.52146973]
[1760117581154,1.1755452,1229.8,1227.5,0.52146973]
[1760117581354,1.1755452,1229.8,1227.1,0.6060903]
[1760117581650,1.1755452,1229.8,1227.2,1.12768625]
[1760117581855,1.1755452,1229.8,1227.3,0.52159595]
[1760117582151,1.1755452,1229.8,1227.4,0.52159595]
[1760117582351,1.1755452,1229.8,1227.5,0.52159595]
[1760117582651,1.1755452,1229.9,1227.6,0.52159595]
[1760117582852,1.1755452,1229.9,1227.7,0.52159595]
[1760117583056,1.1755452,1229.9,1227.3,0.6060903]
[1760117583256,1.1755452,1229.9,1227.4,0.52166926]
[1760117583456,1.1755452,1229.8,1227.5,0.52166926]
[1760117583655,1.1755452,1229.8,1227.1,0.6060903]
[1760117583957,1.1755452,1229.8,1227.2,0.52186449]
[1760117584155,1.1755452,1229.7,1227.3,0.52186449]
[1760117584458,1.1755452,1229.7,1227.4,0.52186449]
[1760117584658,1.1755452,1229.7,1227.5,0.52186449]
[1760117584859,1.1755452,1229.7,1227.1,0.6060903]